Cogmind - Beta 15 @@@ ROGUE MODE // 2025.08.18 @ 19:24:32 Player: shapeshifter Result: Destroyed by H-71 Marshal with Heavy Mass Driver Performance ------------- Evolutions (5) 2500 Regions Visited (15) 3000 Robots Destroyed (104) 520 Value Destroyed (3713) 3713 Prototype IDs (18) 360 Alien Tech Used (1) 200 Bonus (885) 885 TOTAL SCORE: 11178 Bonus ------- Follower Combat Kills 85 Entered DSFs 500 Met Data Miner 300 Cogmind --------- Core Integrity 0/1000 Matter 81/300 Energy 98/100 System Corruption 20% Temperature Cool (0) Movement Rolling (100) Location -5/Factory Parts ------- > --- POWER (2) -------- (None) > --- PROPULSION (5) --- Armored Medium Treads Compact Wheel Compact Wheel > --- UTILITY (8) ------ Large Storage Unit Advanced Weight Redist. System Machine Analyzer Advanced Terrain Scan Processor Transport Network Coupler Improved Hacking Suite > --- WEAPON (3) ------- (None) > --- INVENTORY (15) --- Enhanced Nuclear Core Angular Momentum Engine Cryofiber Web Advanced Heat Sink High-capacity Storage Unit Huge Storage Unit Improved Matter Compressor (169) Improved Sensor Array Authchip [R/Combat] Authchip [Device] Authchip [Device] Authchip [Weapon] Authchip [Weapon] Improved Remote Datajack Great Maul Peak State ------------ > --- POWER ------------ Micro Fission Core Micro Fission Core > --- PROPULSION ------- Armored Treads Aluminum Leg Improved Titanium Leg Flexi-carbon Leg Flexi-carbon Leg > --- UTILITY ---------- Cryofiber Web Advanced Heat Sink High-capacity Storage Unit Advanced Sensor Array Advanced Terrain Scanner Advanced Terrain Scan Processor Precision Matter Filter Improved Reaction Control System > --- WEAPON ----------- Wave Gun Wave Gun Great Maul > --- INVENTORY -------- Enhanced Nuclear Core Angular Momentum Engine Armored Treads Armored Medium Treads Huge Storage Unit Improved Matter Compressor Improved Terrain Scanner Melee Analysis Suite Force Booster ECM Suite Focal Shield Authchip [R/Combat] Authchip [Device] Authchip [Device] Authchip [Weapon] Authchip [Weapon] Flak Gun Enhanced Gauss Cannon Proton Missile Launcher Improved Remote Datajack [Rating: 88] Favorites ----------- Power Light Nuclear Core Engine Ion Engine Power Core Light Nuclear Core Propulsion Improved Titanium Leg Treads Armored Treads Leg Improved Titanium Leg Wheel Armored Wheel Flight Unit Improved VTOL Module Utility High-capacity Storage Unit Device Improved Terrain Scanner Storage High-capacity Storage Unit Processor Visual Processing Unit Hackware Hacking Suite Protection Hardened Light Armor Plating Weapon Great Maul Energy Gun Wave Gun Ballistic Gun Gauss Rifle Ballistic Cannon Improved Light Cannon Launcher Rocket Launcher Special Weapon Improved Remote Datajack Impact Weapon Great Maul Build | -11 -10 -10 -9 -9 -9 -8 -8 -7 -7 -7 -7 -6 -6 -6 -5 ------- Run | Yrd Mat Min Mat Min Exi Min Mat Fac Low Low Dat Pro Fac DSF Fac Slots Evolved 10 | . . . 2 . . . 2 2 . . . . 2 . 2 Power 1 | . . . . . . . . . . . . . . . 1 Propulsion 3 | . . . 1 . . . . . . . . . 1 . 1 Utility 6 | . . . 1 . . . 2 2 . . . . 1 . . Weapon . | . . . . . . . . . . . . . . . . Parts Attached 109 | 7 5 1 12 . 1 . 18 18 5 5 . 3 2 7 25 Power 11 | 1 1 . . . . . 3 2 . . . 1 . 1 2 Engine 5 | 1 1 . . . . . 1 . . . . 1 . 1 . Core 6 | . . . . . . . 2 2 . . . . . . 2 Reactor . | . . . . . . . . . . . . . . . . Propulsion 33 | 2 3 . 7 . . . 4 3 1 2 . . . 4 7 Treads 7 | . . . 3 . . . . . . . . . . . 4 Leg 12 | 2 . . . . . . . 3 1 2 . . . 4 . Wheel 13 | . 3 . 4 . . . 3 . . . . . . . 3 Hover . | . . . . . . . . . . . . . . . . Flight 1 | . . . . . . . 1 . . . . . . . . Utility 41 | 2 1 1 1 . . . 6 8 2 3 . 2 2 1 12 Device 18 | 1 . 1 . . . . 2 1 1 3 . 1 1 1 6 Storage 5 | 1 1 . . . . . . 1 . . . . . . 2 Processor 8 | . . . 1 . . . 1 1 1 . . 1 . . 3 Hackware 4 | . . . . . . . . 2 . . . . 1 . 1 Protection 6 | . . . . . . . 3 3 . . . . . . . Artifact . | . . . . . . . . . . . . . . . . Weapon 24 | 2 . . 4 . 1 . 5 5 2 . . . . 1 4 Energy Gun 7 | . . . . . . . 2 2 . . . . . 1 2 Energy Cannon . | . . . . . . . . . . . . . . . . Ballistic Gun 5 | 2 . . . . . . 2 . . . . . . . 1 Ballistic Cannon 6 | . . . 3 . . . . 1 2 . . . . . . Launcher 4 | . . . 1 . 1 . 1 1 . . . . . . . Special Weapon 1 | . . . . . . . . . . . . . . . 1 Impact Weapon 1 | . . . . . . . . 1 . . . . . . . Slashing Weapon . | . . . . . . . . . . . . . . . . Piercing Weapon . | . . . . . . . . . . . . . . . . Special Melee Weapon . | . . . . . . . . . . . . . . . . Unidentified Prototypes 8 | . . . . . . . 3 1 . 1 . 1 . . 2 Corrupted Parts 2 | . . . . . . . . . . . . 1 . 1 . System Corruption 8 | . . . . . . . . . . . . 6 . 2 . Parts Lost 56 | . 3 . 3 . . . 9 3 2 6 . . . 7 23 Power 7 | . 1 . . . . . 2 . 1 1 . . . . 2 Propulsion 20 | . 1 . 2 . . . 3 . 1 2 . . . 3 8 Utility 18 | . 1 . . . . . 3 1 . 3 . . . 2 8 Weapon 11 | . . . 1 . . . 1 2 . . . . . 2 5 Highest Loss Streak 16 | . 3 . 2 . . . 4 2 2 3 . . . 3 16 To Critical Strikes . | . . . . . . . . . . . . . . . . Average Backups 19 | 3 6 4 11 20 24 24 24 20 18 15 17 18 18 18 19 Power 1 | . . . 1 2 2 2 1 1 1 . 1 1 1 1 1 Propulsion 4 | 2 4 4 3 6 7 6 4 5 4 2 2 2 2 2 1 Utility 8 | . 1 . 4 5 7 9 9 9 6 5 7 8 8 10 11 Weapon 4 | . . . 1 6 6 5 7 3 5 6 7 7 7 4 2 Tool/Special . | . . . . . . . . . . . . . . . . Unused Backups 46 | . . . 1 . . . 9 21 . . . . . 4 11 Power 2 | . . . . . . . 1 1 . . . . . . . Propulsion 4 | . . . . . . . . 4 . . . . . . . Utility 28 | . . . 1 . . . 4 10 . . . . . 4 9 Weapon 10 | . . . . . . . 4 5 . . . . . . 1 Tool/Special 2 | . . . . . . . . 1 . . . . . . 1 Average Slot Usage (%) 94 | . 99 100 82 100 100 100 97 99 97 90 84 87 79 92 91 Engine 3 | . 14 14 10 11 11 11 3 . . . . . . 4 . Core 5 | . . . . . . . 5 7 6 6 7 7 6 1 9 Treads 1 | . . . 12 . . . . . . . . . . . 5 Leg 12 | . 5 . . . . . . 20 22 22 23 22 18 22 18 Wheel 11 | . 22 28 11 33 33 33 26 2 . . . . . . . Device 14 | . 13 14 11 11 11 11 7 9 14 21 23 22 20 23 23 Storage 8 | . 14 14 11 11 11 11 9 7 7 7 7 7 6 6 5 Processor 13 | . . . 10 11 11 11 18 12 14 15 15 19 18 17 10 Hackware 2 | . . . . . . . . 14 . . . . 2 1 1 Protection 4 | . . . . . . . 8 7 15 5 . . . . . Energy Gun 2 | . . . . . . . . 6 1 . . . . 5 7 Ballistic Gun 3 | . 28 28 9 . . . 7 3 . . . . . . . Ballistic Cannon 3 | . . . 3 11 11 11 5 . 4 1 . . . 3 . Launcher 2 | . . . 3 11 11 11 4 . . . . . . . . Impact Weapon 3 | . . . . . . . . 4 6 6 7 7 6 6 4 Peak Build Rating 88 | 7 8 9 20 21 21 21 32 47 52 56 49 59 62 76 88 Average Rating 41 | 5 6 9 12 20 20 21 27 42 47 49 49 54 60 67 76 On Entrance 31 | . 7 6 9 20 21 21 21 29 46 45 49 49 56 60 63 Naked Turns . | . . . . . . . . . . . . . . . . Heaviest Build 103 | 14 89 89 94 94 94 94 103 100 72 60 59 66 60 83 75 Greatest Support 80 | 20 32 32 60 36 36 36 36 60 60 60 60 60 60 80 70 Greatest Overweight (x) 7 | . 3 2 7 2 2 2 4 2 1 . . 1 . 1 1 Average Overweight (x) 1 | . 2 2 2 2 2 2 2 . . . . . . . . Largest Inventory Capacity 25 | 8 25 25 25 25 25 25 25 25 20 20 20 20 20 20 20 Average Capacity 21 | 6 21 25 25 25 25 25 25 20 20 20 20 20 20 20 19 Most Carried 25 | 7 8 4 25 23 25 25 25 25 20 17 17 20 19 20 20 Average Carried 19 | 3 6 4 11 20 24 24 24 20 18 15 17 18 18 18 19 Final Capacity 25 | 8 25 25 25 25 25 25 25 20 20 20 20 20 20 20 15 Final Carried 25 | 6 5 4 19 23 23 25 25 20 18 17 17 19 18 18 15 Class Distribution -------------------- 40% | Mutant 20% | Assassin 15% | Hacker-Mutant 12% | Scavenger-Assassin 7% | Scavenger-Mutant Dominant Class ---------------- Mutant | -10/Materials Mutant | -10/Mines Mutant | -9/Materials Mutant | -9/Mines Mutant | -9/Exiles Mutant | -8/Mines Mutant | -8/Materials Hacker-Mutant | -7/Factory Assassin | -7/Lower Caves Assassin | -7/Lower Caves Assassin | -7/Data Miner Assassin | -6/Proximity Caves Assassin | -6/Factory Derelict-Mutant | -6/DSF Scavenger-Assassin | -5/Factory Resources | -11 -10 -10 -9 -9 -9 -8 -8 -7 -7 -7 -7 -6 -6 -6 -5 ----------- Run | Yrd Mat Min Mat Min Exi Min Mat Fac Low Low Dat Pro Fac DSF Fac Matter Collected 3836 | 306 . . 270 149 . 65 1007 314 222 702 . 42 . 259 500 Remotely . | . . . . . . . . . . . . . . . . Salvage Created 3642 | 163 . . 263 103 . 105 1186 447 163 471 . . . 92 649 Parts 180 | 11 . . 17 9 . 2 68 17 3 17 . . . 5 31 Haulers Intercepted 7 | . . . 3 . . . 3 1 . . . . . . . Recyclers Shooed 1 | . . . . . . . 1 . . . . . . . . Parts Field Recycled . | . . . . . . . . . . . . . . . . Retrieved Matter . | . . . . . . . . . . . . . . . . Parts Self-Destructed 23 | . . . . . . . . . 8 12 . 3 . . . Prevented 13 | . . . . . . . . . 9 4 . . . . . Kills | -11 -10 -10 -9 -9 -9 -8 -8 -7 -7 -7 -7 -6 -6 -6 -5 ------- Run | Yrd Mat Min Mat Min Exi Min Mat Fac Low Low Dat Pro Fac DSF Fac Combat Hostiles Destroyed 75 | . . . 5 9 . 3 22 7 4 11 . . . 2 12 Melee 7 | . . . . . . . . 2 . . . . . . 5 Guns 9 | . . . 2 . . . 4 2 . . . . . . 1 Cannons 36 | . . . . 1 . 2 13 . 4 9 . . . 2 5 AOE 21 | . . . 3 8 . 1 5 1 . 2 . . . . 1 Classes Destroyed 15 | 2 . . 5 1 . 1 5 1 . . . . . . . Worker 3 | . . . . . . . 2 . . . . . . . 1 Builder 6 | . . . . 1 . . 4 . . . . . . . 1 Tunneler 4 | 3 . . . . . . 1 . . . . . . . . Hauler 7 | . . . 3 . . . 3 1 . . . . . . . Recycler 3 | 1 . . . . . . 2 . . . . . . . . Operator 1 | . . . . . . . 1 . . . . . . . . Watcher 5 | . . . 1 . . . 3 1 . . . . . . . Swarmer 12 | . . . 3 7 . . . . . 2 . . . . . Grunt 32 | . . . 1 2 . 2 14 1 2 4 . . . . 6 Brawler 4 | . . . . . . 1 . . 1 2 . . . . . Duelist 2 | . . . . . . . 1 . . 1 . . . . . Sentry 11 | . . . 1 . . . 2 3 1 2 . . . . 2 Specialist 4 | . . . . . . . 2 . . . . . . 2 . Hunter 3 | . . . . . . . 3 . . . . . . . . Programmer 7 | . . . . . . . . 3 . . . . . . 4 Best Kill Streak 8 | 4 . . 4 4 . 2 7 2 3 8 . . . 1 5 Combat Bots Only 8 | . . . 3 4 . 2 5 1 3 8 . . . 1 4 Max Kills in Single Turn 4 | 1 . . 3 4 . 1 3 1 1 1 . . . 1 1 Gunslinging . | . . . . . . . . . . . . . . . . Exploded 4 | . . . 3 4 . 1 2 1 . 1 . . . . 1 Melee 1 | . . . . . . . . 1 . . . . . . 1 Uniques/NPCs Destroyed . | . . . . . . . . . . . . . . . . Combat | -11 -10 -10 -9 -9 -9 -8 -8 -7 -7 -7 -7 -6 -6 -6 -5 -------- Run | Yrd Mat Min Mat Min Exi Min Mat Fac Low Low Dat Pro Fac DSF Fac Hostile Shots Fired 826 | . 43 . 32 12 . 8 134 146 38 129 . . . 58 226 Missed 280 | . 13 . 3 7 . 4 40 51 16 52 . . . 20 74 Hits 546 | . 30 . 29 5 . 4 94 95 22 77 . . . 38 152 Melee 4 | . . . . . . . 1 . . 3 . . . . . Projectile 542 | . 30 . 29 5 . 4 93 95 22 74 . . . 38 152 AOE 1 | . . . . . . . . . . . . . . . 1 Critical Strikes 12 | . . . . . . . 3 . . 1 . . . 1 7 Part Disruptions 4 | . . . . . . . . . . . . . . 3 1 Damage Taken 9320 | . 345 . 406 100 . 103 1709 926 206 1077 . . . 574 3874 Core 2046 | . 86 . 203 11 . 33 297 135 6 169 . . . 92 1014 Absorbed by Shields . | . . . . . . . . . . . . . . . . Redirected to Shielding 102 | . . . . . . . . . 40 62 . . . . . Ignored by Resistances 133 | . . . . . . . . . . . . . . 88 45 Regen/Repaired (Parts) 65 | . . . . . . . 65 . . . . . . . . Core Remaining (%) 65 | 100 . 65 . . . 38 46 . . . . 55 . 89 . Volleys Fired 299 | 9 5 . 36 10 . 12 119 17 16 34 . . . 18 23 Largest 2 | 2 2 . 2 1 . 1 2 2 2 2 . . . 2 2 Hottest 162 | 40 40 . 40 33 . 33 66 100 94 94 . . . 100 162 Shots Fired 452 | 18 10 . 47 10 . 12 187 29 26 44 . . . 29 40 Gun 198 | 18 10 . 43 . . . 66 27 . . . . . 15 19 Cannon 230 | . . . 3 3 . 11 117 . 26 41 . . . 14 15 Launcher 22 | . . . 1 7 . 1 4 2 . 3 . . . . 4 Special 2 | . . . . . . . . . . . . . . . 2 Kinetic 408 | 18 10 . 46 3 . 11 183 24 26 41 . . . 14 32 Thermal 2 | . . . . . . . . . . . . . . . 2 Explosive 13 | . . . 1 7 . 1 4 . . . . . . . . Electromagnetic 27 | . . . . . . . . 5 . 3 . . . 15 4 Robot Hit Streak 13 | 4 3 . 6 5 . 3 11 8 5 9 . . . 10 13 Robot Miss Streak 5 | 2 4 . 4 3 . 3 4 2 3 4 . . . 1 5 Penetration Max 1 | . . . . . . . 1 . . 1 . . . . . Secondary Targets . | . . . . . . . . . . . . . . . . Shots Hit Robots 311 | 10 3 . 29 6 . 6 112 37 12 27 . . . 20 49 Core Hits 178 | 6 . . 13 13 . 5 61 11 7 14 . . . 5 43 Critical Kills 2 | . . . . . . . 1 . . . . . . . 1 Critical Parts Destroyed 11 | . . . . . . . 2 7 . . . . . . 2 Critical Strikes 26 | . . . . 1 . 1 5 7 1 6 . . . . 5 Destroy 3 | . . . . . . . 3 . . . . . . . . Blast 13 | . . . . 1 . 1 2 . 1 6 . . . . 2 Smash 10 | . . . . . . . . 7 . . . . . . 3 Melee Attacks 88 | . . . . . . . . 38 . . . 1 . . 49 Impact 88 | . . . . . . . . 38 . . . 1 . . 49 Slashing . | . . . . . . . . . . . . . . . . Piercing . | . . . . . . . . . . . . . . . . Sneak Attacks 1 | . . . . . . . . . . . . . . . 1 Combat Hostiles 1 | . . . . . . . . . . . . . . . 1 Follow-up Attacks . | . . . . . . . . . . . . . . . . Damage Inflicted 9945 | 102 35 . 542 704 . 270 3069 1284 430 1209 . . . 450 1850 Guns 2313 | 102 35 . 303 . . . 986 387 . . . . . 155 345 Cannons 3746 | . . . 65 60 . 126 1508 . 430 868 . . . 295 394 Explosions 2352 | . . . 174 644 . 144 575 171 . 341 . . . . 303 Melee 1534 | . . . . . . . . 726 . . . . . . 808 Ramming . | . . . . . . . . . . . . . . . . Kinetic 5890 | 102 35 . 368 60 . 126 2494 373 430 868 . . . 295 739 Thermal 60 | . . . . . . . . . . 60 . . . . . Explosive 1537 | . . . 174 644 . 144 575 . . . . . . . . Electromagnetic 924 | . . . . . . . . 185 . 281 . . . 155 303 Impact 1534 | . . . . . . . . 726 . . . . . . 808 Slashing . | . . . . . . . . . . . . . . . . Piercing . | . . . . . . . . . . . . . . . . Highest Corruption 19 | . . . . . . . 1 5 5 5 5 11 . 5 19 Average Corruption 3 | . . . . . . . 1 2 5 5 5 5 . 2 6 Corruption Purged . | . . . . . . . . . . . . . . . . Corruption Blocked . | . . . . . . . . . . . . . . . . Effects 75 | . . . . . . . 7 11 11 18 3 7 . 2 16 Message Errors 22 | . . . . . . . 1 3 3 5 2 1 . 1 6 Matter Fused 12 | . . . . . . . . 2 1 5 . 2 . 1 1 Heat Flow Errors 13 | . . . . . . . 2 2 2 1 . 2 . . 4 Energy Discharges 5 | . . . . . . . 1 1 1 1 1 . . . . Parts Fused 3 | . . . . . . . 1 . . 2 . . . . . Data Loss (minor) 6 | . . . . . . . 2 . . 3 . . . . 1 Data Loss (major) 6 | . . . . . . . . 2 2 1 . 1 . . . Misfires 2 | . . . . . . . . . 1 . . . . . 1 Alerts 4 | . . . . . . . . 1 1 . . 1 . . 1 Misdirections 1 | . . . . . . . . . . . . . . . 1 Weapon Failures 1 | . . . . . . . . . . . . . . . 1 Overload Shots . | . . . . . . . . . . . . . . . . Overflow Damage 601 | . . . 40 . . 7 24 356 . 7 . . . 6 161 Projectiles 44 | . . . . . . 7 24 . . 7 . . . 6 . Explosions 55 | . . . 40 . . . . . . . . . . . 15 Melee 502 | . . . . . . . . 356 . . . . . . 146 Knockbacks 43 | . . . . . . 2 19 3 2 8 . . . 3 6 Impact 6 | . . . . . . . . 3 . . . . . . 3 Kinetic 35 | . . . . . . 2 19 . 2 8 . . . 3 1 Secondary 2 | . . . . . . . . . . . . . . . 2 Self-Inflicted Damage 204 | . . . . 42 . 41 53 . . 13 . . . . 55 Shots 12 | . . . . 2 . 1 3 . . 2 . . . . 4 Rammed . | . . . . . . . . . . . . . . . . Targets Rammed . | . . . . . . . . . . . . . . . . Kicked . | . . . . . . . . . . . . . . . . Crushed . | . . . . . . . . . . . . . . . . Highest Temperature 334 | . 6 . 9 2 . 2 322 182 207 334 . 180 . . 81 Average Temperature 83 | . 3 . 5 1 . 2 95 92 73 131 . 85 . . 12 Received Heat Transfer 2181 | . 180 . 186 30 . 36 675 195 72 267 . . . . 540 Siege Activations . | . . . . . . . . . . . . . . . . Martial Activations . | . . . . . . . . . . . . . . . . Shielding Activations . | . . . . . . . . . . . . . . . . Robots Disrupted . | . . . . . . . . . . . . . . . . Combat Hostiles . | . . . . . . . . . . . . . . . . Robots Corrupted 3 | . . . . . . . . 3 . . . . . . . Combat Hostiles 2 | . . . . . . . . 2 . . . . . . . Parts Fried 5 | . . . . . . . . 5 . . . . . . . Impact Corruptions 19 | . . . . . . . . 12 . . . . . . 7 Robots Melted . | . . . . . . . . . . . . . . . . Combat Hostiles . | . . . . . . . . . . . . . . . . Parts Melted 1 | . . . . . . . . . . . . . . . 1 Heat Transferred 100 | . . . . . . . . . . 100 . . . . . Parts Sabotaged . | . . . . . . . . . . . . . . . . Parts Stolen . | . . . . . . . . . . . . . . . . Parts Stripped . | . . . . . . . . . . . . . . . . Power Chain Reactions 2 | . . . . . . . . . . 1 . . . . 1 Alert | -11 -10 -10 -9 -9 -9 -8 -8 -7 -7 -7 -7 -6 -6 -6 -5 ------- Run | Yrd Mat Min Mat Min Exi Min Mat Fac Low Low Dat Pro Fac DSF Fac Maximum Alert Level 1 | . . . . . . . 1 . . . . . 1 . . Low Security (%) 93 | 100 100 100 100 100 . 100 74 100 . . . . . 100 100 Level 1 6 | . . . . . . . 25 . . . . . 100 . . Level 2 . | . . . . . . . . . . . . . . . . Level 3 . | . . . . . . . . . . . . . . . . Level 4 . | . . . . . . . . . . . . . . . . Level 5 . | . . . . . . . . . . . . . . . . High Security . | . . . . . . . . . . . . . . . . Max Security . | . . . . . . . . . . . . . . . . Peak Influence 305 | 10 8 . 91 120 . 81 305 112 . . . . 300 169 173 Initial 300 | . . . . 8 . . . 112 . . . . 300 168 70 Average 53 | 2 . . 26 36 . 22 128 30 . . . . 271 153 22 Influence Increases 2879 | 20 8 . 192 276 . 101 734 309 90 348 . 10 300 77 414 Destroy 0b10 Robot/C 1540 | . . . 100 180 . 60 440 140 80 240 . . . 60 240 Destroy 0b10 Robot/NC 155 | 20 . . 20 5 . . 80 10 . . . 10 . . 10 Destroy Leader 322 | . . . 38 20 . 10 112 62 10 . . . . . 70 Allied During Kill 4 | . . . . . . . . . . 3 . . . 1 . Trap Triggered on 0b10 10 | . . . . . . . 10 . . . . . . . . Successful Hack 60 | . 8 . 5 . . . 30 17 . . . . . . . Disable Machine 90 | . . . . 15 . . 15 30 . . . . . . 30 Destroy Structure 203 | . . . 14 56 . 16 32 20 . . . . . 1 64 Advance Influence 300 | . . . . . . . . . . . . . 300 . . Lose Combat Pursuer 195 | . . . 15 . . 15 15 30 . 105 . . . 15 . Influence Decreases 2778 | 20 8 . 170 267 31 101 485 532 94 200 170 10 60 182 448 Entered New Map 504 | . . . . 14 31 . . 137 10 5 170 . . 72 65 Time Decay 1860 | 20 8 . 153 253 . 101 395 385 84 148 . 10 60 . 243 Lost Part 374 | . . . 17 . . . 90 10 . 47 . . . 70 140 Lost Ally 40 | . . . . . . . . . . . . . . 40 . Squads Dispatched 20 | . 3 . 1 . . . 3 4 . 1 . . . 2 6 Investigation 5 | . 1 . . . . . 1 1 . . . . . . 2 Extermination 6 | . . . . . . . . 3 . . . . . . 3 Reinforcement 8 | . 2 . 1 . . . 2 . . . . . . 2 1 Assault 1 | . . . . . . . . . . 1 . . . . . Garrison . | . . . . . . . . . . . . . . . . Intercept . | . . . . . . . . . . . . . . . . Searches Triggered . | . . . . . . . . . . . . . . . . Data Miner Redirects 2 | . . . . . . . . . . . . . . . 2 Construction Impeded 1 | . . . . . . . . . . . . . . . 1 Haulers Reinforced . | . . . . . . . . . . . . . . . . Active Scanning Responses . | . . . . . . . . . . . . . . . . Cargo Convoy Interrupts 1 | . . . . . . . . . . . . . . . 1 Stealth | -11 -10 -10 -9 -9 -9 -8 -8 -7 -7 -7 -7 -6 -6 -6 -5 --------- Run | Yrd Mat Min Mat Min Exi Min Mat Fac Low Low Dat Pro Fac DSF Fac Distress Signals 6 | . 2 . . . . . 2 . . . . . . . 2 Communications Jammed . | . . . . . . . . . . . . . . . . Distress Signals . | . . . . . . . . . . . . . . . . Times Spotted 128 | . 14 . 9 6 . 4 28 15 4 18 . 4 . 6 20 Peak Tracking Total 12 | . 12 . 3 4 . 3 5 3 3 8 . 2 . 3 5 Tactical Retreats 10 | . . . 1 . . 1 1 1 . 5 . . . 1 . Traps | -11 -10 -10 -9 -9 -9 -8 -8 -7 -7 -7 -7 -6 -6 -6 -5 ------- Run | Yrd Mat Min Mat Min Exi Min Mat Fac Low Low Dat Pro Fac DSF Fac Traps Triggered 4 | . . . 2 . . . 2 . . . . . . . . Indirectly . | . . . . . . . . . . . . . . . . Trap Hack Attempts . | . . . . . . . . . . . . . . . . Triggered . | . . . . . . . . . . . . . . . . Disarmed . | . . . . . . . . . . . . . . . . Reprogrammed 3 | . . . . . . . 3 . . . . . . . . Reused 1 | . . . . . . . 1 . . . . . . . . Traps Extracted . | . . . . . . . . . . . . . . . . Installed . | . . . . . . . . . . . . . . . . Triggered 1 | . . . . . . . 1 . . . . . . . . Machines | -11 -10 -10 -9 -9 -9 -8 -8 -7 -7 -7 -7 -6 -6 -6 -5 ---------- Run | Yrd Mat Min Mat Min Exi Min Mat Fac Low Low Dat Pro Fac DSF Fac Machines Disabled 7 | . . . . 1 . . 1 2 . 1 . . . . 2 Max in Single Turn 1 | . . . . 1 . . 1 1 . 1 . . . . 1 Garrison Access 2 | . . . . . . . . 1 . . . . . . 1 Machines Repaired . | . . . . . . . . . . . . . . . . Machines Dismantled . | . . . . . . . . . . . . . . . . Machines Sabotaged . | . . . . . . . . . . . . . . . . Overloaded Fab Kills . | . . . . . . . . . . . . . . . . Hacking | -11 -10 -10 -9 -9 -9 -8 -8 -7 -7 -7 -7 -6 -6 -6 -5 --------- Run | Yrd Mat Min Mat Min Exi Min Mat Fac Low Low Dat Pro Fac DSF Fac Machines Accessed 31 | . 3 . 2 1 1 . 6 6 . . 4 . 2 . 6 Terminals 20 | . 3 . 2 1 . . 5 3 . . . . 2 . 4 Fabricators 1 | . . . . . . . . 1 . . . . . . . Repair Stations 1 | . . . . . . . 1 . . . . . . . . Recycling Units 1 | . . . . . . . . . . . . . . . 1 Scanalyzers . | . . . . . . . . . . . . . . . . Garrison Access 3 | . . . . . . . . 2 . . . . . . 1 Total Hacks 103 | . 10 . 6 1 1 . 21 15 . . 32 . 5 . 12 Successful 60 | . 4 . 3 1 1 . 9 6 . . 32 . 1 . 3 Failed 43 | . 6 . 3 . . . 12 9 . . . . 4 . 9 Catastrophic 10 | . 1 . . . . . 3 1 . . . . 1 . 4 Database Lockouts . | . . . . . . . . . . . . . . . . Manual 21 | . 8 . . . . . 4 . . . . . 1 . 8 Terminals 53 | . 10 . 6 1 . . 16 7 . . . . 5 . 8 Fabricators 3 | . . . . . . . . 3 . . . . . . . Repair Stations 5 | . . . . . . . 5 . . . . . . . . Recycling Units 3 | . . . . . . . . . . . . . . . 3 Scanalyzers . | . . . . . . . . . . . . . . . . Garrison Access 6 | . . . . . . . . 5 . . . . . . 1 Terminal Hacks 50 | . 2 . 3 1 1 . 6 4 . . 32 . 1 . . Record 12 | . . . . . 1 . . . . . 11 . . . . Part Schematic 11 | . . . . . . . . . . . 11 . . . . Robot Schematic 7 | . . . . . . . . . . . 7 . . . . Robot Analysis 1 | . . . . . . . . 1 . . . . . . . Prototype ID Bank 3 | . . . . . . . . . . . 3 . . . . Open DSF 1 | . . . . . . . . . . . . . 1 . . Branch Access Points 1 | . . . . . . . . 1 . . . . . . . Emergency Access Points 1 | . . . 1 . . . . . . . . . . . . Alert Level 1 | . . . . . . . 1 . . . . . . . . Reprogram Traps 1 | . . . . . . . 1 . . . . . . . . Dispatch Records 1 | . . . . . . . 1 . . . . . . . . Registered Components 2 | . 1 . . . . . 1 . . . . . . . . Zone Layout 8 | . 1 . 2 1 . . 2 2 . . . . . . . Fabricator Hacks 1 | . . . . . . . . 1 . . . . . . . Build 1 | . . . . . . . . 1 . . . . . . . Repair Station Hacks 2 | . . . . . . . 2 . . . . . . . . Scan Component 1 | . . . . . . . 1 . . . . . . . . Repair 1 | . . . . . . . 1 . . . . . . . . Recycling Unit Hacks 2 | . . . . . . . . . . . . . . . 2 Report Inventory 1 | . . . . . . . . . . . . . . . 1 Retrieve Components 1 | . . . . . . . . . . . . . . . 1 Scanalyzer . | . . . . . . . . . . . . . . . . Garrison Access Hacks 2 | . . . . . . . . 1 . . . . . . 1 Seal Access 2 | . . . . . . . . 1 . . . . . . 1 Unauthorized Hacks 3 | . 2 . . . . . 1 . . . . . . . . Terminals 3 | . 2 . . . . . 1 . . . . . . . . Botnet 3 | . 2 . . . . . 1 . . . . . . . . Fabricators . | . . . . . . . . . . . . . . . . Repair Stations . | . . . . . . . . . . . . . . . . Recycling Units . | . . . . . . . . . . . . . . . . Scanalyzers . | . . . . . . . . . . . . . . . . Garrison Access . | . . . . . . . . . . . . . . . . Data Cores Recovered . | . . . . . . . . . . . . . . . . Used . | . . . . . . . . . . . . . . . . Hacking Detections 24 | . 3 . 2 . . . 6 6 . . . . 2 . 5 Full Trace Events 4 | . 1 . . . . . . 1 . . . . . . 2 Feedback Events . | . . . . . . . . . . . . . . . . Feedback Blocked . | . . . . . . . . . . . . . . . . Robot Schematics Acquired 7 | . . . . . . . . . . . 7 . . . . Robots Built . | . . . . . . . . . . . . . . . . Authchips . | . . . . . . . . . . . . . . . . Time . | . . . . . . . . . . . . . . . . Total Robot Build Rating . | . . . . . . . . . . . . . . . . Part Schematics Acquired 11 | . . . . . . . . . . . 11 . . . . Parts Built 2 | . . . . . . . . 2 . . . . . . . Authchips . | . . . . . . . . . . . . . . . . Time 53 | . . . . . . . . 53 . . . . . . . Total Part Build Rating 12 | . . . . . . . . 12 . . . . . . . Parts Repaired 1 | . . . . . . . 1 . . . . . . . . Time 16 | . . . . . . . 16 . . . . . . . . Parts Recycled . | . . . . . . . . . . . . . . . . Recycled Matter . | . . . . . . . . . . . . . . . . Retrieved Matter . | . . . . . . . . . . . . . . . . Retrieved Components 3 | . . . . . . . . . . . . . . . 3 Parts Scanalyzed . | . . . . . . . . . . . . . . . . Part Schematics Acquired . | . . . . . . . . . . . . . . . . Parts Damaged . | . . . . . . . . . . . . . . . . Bothacking | -11 -10 -10 -9 -9 -9 -8 -8 -7 -7 -7 -7 -6 -6 -6 -5 ------------ Run | Yrd Mat Min Mat Min Exi Min Mat Fac Low Low Dat Pro Fac DSF Fac Used RIF Installer . | . . . . . . . . . . . . . . . . Robots Hacked 1 | . . . . . . . . . . . . . . . 1 Non-combat 1 | . . . . . . . . . . . . . . . 1 Combat . | . . . . . . . . . . . . . . . . Robot Hacks Applied 1 | . . . . . . . . . . . . . . . 1 find_chute 1 | . . . . . . . . . . . . . . . 1 Relay Couplers Released . | . . . . . . . . . . . . . . . . Fabnet Peak Effective % . | . . . . . . . . . . . . . . . . Robots Rewired 2 | . . . . . . . . . . 2 . . . . . Allies Hacked . | . . . . . . . . . . . . . . . . Hacks Repelled . | . . . . . . . . . . . . . . . . Allies | -11 -10 -10 -9 -9 -9 -8 -8 -7 -7 -7 -7 -6 -6 -6 -5 -------- Run | Yrd Mat Min Mat Min Exi Min Mat Fac Low Low Dat Pro Fac DSF Fac Total Allies 2 | . . . . . . . . . . 2 . . . . . Largest Group 2 | . . . . . . . . . . 2 2 2 2 2 . Highest-Rated Group 46 | . . . . . . . . . . 46 46 46 46 46 . Highest-Rated Ally 30 | . . . . . . . . . . 30 30 30 30 30 . Total Orders 2 | . . . . . . . . . . . . . 2 . . STAY 1 | . . . . . . . . . . . . . 1 . . FOLLOW 1 | . . . . . . . . . . . . . 1 . . Ally Attacks 24 | . . . . . . . . . . 12 . 9 . 3 . Total Damage 234 | . . . . . . . . . . 101 . 47 . 86 . Kills 4 | . . . . . . . . . . 1 . 2 . 1 . Allies Corrupted . | . . . . . . . . . . . . . . . . Allies Melted . | . . . . . . . . . . . . . . . . Intel | -11 -10 -10 -9 -9 -9 -8 -8 -7 -7 -7 -7 -6 -6 -6 -5 ------- Run | Yrd Mat Min Mat Min Exi Min Mat Fac Low Low Dat Pro Fac DSF Fac Active Infowar (turns) 8714 | 13 174 52 625 793 322 413 1293 1606 636 599 107 358 131 204 1388 Optics 4490 | . . . 605 793 322 413 1293 1064 . . . . . . . Sensors 3628 | . . . . . . . . 542 636 570 107 358 131 82 1202 Terrain 6006 | . . 52 625 793 322 413 444 . 635 599 107 358 89 204 1365 Seismic 187 | 13 174 . . . . . . . . . . . . . . T.N.C. 75 | . . . . . . . . . . . . . . . 75 Machine Analysis 74 | . . . . . . . . . . . . . . . 74 ECM 4 | . . . . . . . . . . . . . . . 4 Robot Analysis Total 1 | . . . . . . . . 1 . . . . . . . Derelict Logs Recovered 8 | . . . . 2 . . . . 2 2 . 2 . . . Drone Launches . | . . . . . . . . . . . . . . . . Drone Recoveries . | . . . . . . . . . . . . . . . . Exploration | -11 -10 -10 -9 -9 -9 -8 -8 -7 -7 -7 -7 -6 -6 -6 -5 ------------- Run | Yrd Mat Min Mat Min Exi Min Mat Fac Low Low Dat Pro Fac DSF Fac Turns Passed 8979 | 108 184 52 625 793 322 413 1293 1607 636 625 107 358 131 204 1521 Spaces Moved 5049 | 58 124 40 242 588 264 299 711 812 278 278 81 253 95 85 841 Core 11 | 11 . . . . . . . . . . . . . . . Treads 117 | . . . 88 . . . . . . . . . . . 29 Legs 2598 | 47 27 . . . . . . 686 278 278 81 253 95 85 768 Wheels 2323 | . 97 40 154 588 264 299 711 126 . . . . . . 44 Hover . | . . . . . . . . . . . . . . . . Flight . | . . . . . . . . . . . . . . . . Fastest Speed 50 | 50 120 130 120 120 120 120 116 101 130 130 130 130 130 122 100 Average Speed 130 | 106 130 130 195 120 120 120 119 128 171 130 130 130 130 146 123 Slowest Speed 320 | 120 135 130 320 120 120 120 150 270 200 130 130 200 130 200 250 Overloaded Moves . | . . . . . . . . . . . . . . . . Propulsion Burnouts . | . . . . . . . . . . . . . . . . Robots Hopped . | . . . . . . . . . . . . . . . . Potential Cave-ins . | . . . . . . . . . . . . . . . . Cave-ins Triggered . | . . . . . . . . . . . . . . . . Exploration Rate (%) 39 | 4 34 17 22 82 68 47 59 19 54 49 68 44 2 40 18 Regions Visited 15 Branch Regions 8 Pre-discovered Areas 4 | . . . . 1 1 . . . . . 1 1 . . . Known Exits Taken 6 | . . . . . . . . 1 1 1 1 1 1 . . Unknown Exits Taken 8 | 1 1 1 1 1 1 1 1 . . . . . . . . Scrap Searched 9 | . . . . 2 . 1 . . 2 2 . 2 . . . Spaces Dug 49 | . . . . . . . . 19 3 . . 1 . . 26 Terrain Destroyed 227 | . . . 13 76 . 16 29 19 18 21 . 1 . 1 33 Melee 46 | . . . . . . . . 19 . . . 1 . . 26 Projectile 52 | . . . . . . 3 5 . 18 20 . . . 1 5 AOE 128 | . . . 13 76 . 13 23 . . 1 . . . . 2 Terrain Rammed . | . . . . . . . . . . . . . . . . Walls Destroyed . | . . . . . . . . . . . . . . . . Machines Disabled . | . . . . . . . . . . . . . . . . Actions | -11 -10 -10 -9 -9 -9 -8 -8 -7 -7 -7 -7 -6 -6 -6 -5 --------- Run | Yrd Mat Min Mat Min Exi Min Mat Fac Low Low Dat Pro Fac DSF Fac Total 6829 | 87 136 40 348 665 270 341 976 1275 413 497 83 278 100 135 1185 Wait 973 | 2 . . 27 64 . 29 59 329 106 140 3 16 1 . 197 Move 5034 | 57 123 39 241 587 263 298 710 811 277 277 80 252 94 84 841 Hop . | . . . . . . . . . . . . . . . . Pick Up 151 | 12 2 . 27 4 3 2 33 27 1 6 . 4 . 14 16 Fast Attach 22 | 1 . . . . . . 5 3 . . . . . 1 12 Attach 81 | 6 2 1 10 . 1 . 13 6 5 9 . 2 1 9 16 Detach 10 | . . . . . . . . . 2 3 . . . . 5 Swap 63 | . 3 . 5 . . . 11 14 4 3 . 3 4 4 12 Drop 84 | . 1 . 2 . 3 . 26 30 2 1 . . . 5 14 Fire 299 | 9 5 . 36 10 . 12 119 17 16 34 . . . 18 23 Melee 88 | . . . . . . . . 38 . . . 1 . . 49 Ram . | . . . . . . . . . . . . . . . . Kick . | . . . . . . . . . . . . . . . . Crush . | . . . . . . . . . . . . . . . . Escape Stasis . | . . . . . . . . . . . . . . . . Rewire 24 | . . . . . . . . . . 24 . . . . . Trap . | . . . . . . . . . . . . . . . . Miscellaneous . | . . . . . . . . . . . . . . . . Route ------- -11/Scrapyard -10/Materials -10/Mines -9/Materials -9/Mines (discovered 3 exits: *Mat x2 / *Exi) -9/Exiles -8/Mines -8/Materials (discovered 2 exits: *Fac / [*Sto]) -7/Factory (discovered 3 exits: *Fac / *Low x2) -7/Lower Caves -7/Lower Caves -7/Data Miner -6/Proximity Caves -6/Factory (discovered 2 exits: Fac / DSF) -6/DSF -5/Factory (discovered 1 exit: [*Fac]) History --------- Turn | Location | Event 15 | -11/Scrapyard | Discovered new exit (range 14) 109 | -11/Scrapyard | Entered Materials 269 | -10/Materials | Discovered new exit (range 15) 293 | -10/Materials | Entered Mines 314 | -10/Mines | Build established: Mutant 314 | -10/Mines | Lost 3 parts (1p1n1u) 324 | -10/Mines | Met a Derelict bent on vengeance 326 | -10/Mines | Discovered new exit (range 7) 345 | -10/Mines | Entered Materials 345 | -9/Materials | Evolved 2 slots: Propulsion x1, Utility x1 660 | -9/Materials | Discovered new exit (range 17) 746 | -9/Materials | Core integrity fell below 50% 970 | -9/Materials | Entered Mines 1160 | -9/Mines | Discovered new exit (range 12) 1239 | -9/Mines | Found a damaged Exp. Sensor Array with a note attached 1241 | -9/Mines | Found Prototype Device 1246 | -9/Mines | Learned Materials stockpile data 1271 | -9/Mines | Learned Materials stockpile data 1450 | -9/Mines | Learned location of Storage (-8) 1459 | -9/Mines | Discovered new exit (range 3) 1757 | -9/Mines | Deemed a non-threat by the Exiles lab entrance 1758 | -9/Mines | Discovered new exit (range 5) 1763 | -9/Mines | Entered Exiles 1792 | -9/Exiles | Met 8R-AWN 1813 | -9/Exiles | Met EX-HEX 1878 | -9/Exiles | Met EX-DEC 1906 | -9/Exiles | Learned location of Zion (-6) 1936 | -9/Exiles | Met EX-BIN 2065 | -9/Exiles | Discovered new exit (range 17) 2085 | -9/Exiles | Entered Mines 2270 | -8/Mines | Discovered new exit (range 5) 2498 | -8/Mines | Entered Materials 2498 | -8/Materials | Evolved 2 slots: Utility x2 2501 | -8/Materials | Discovered new exit (range 6) 2994 | -8/Materials | Lost 3 parts (1n1u1w) 3198 | -8/Materials | Discovered new exit (range 17) 3326 | -8/Materials | Repaired Arm. Wheel 3540 | -8/Materials | Build established: Scavenger-Mutant 3569 | -8/Materials | Core integrity fell below 50% 3599 | -8/Materials | Lost 4 parts (1p1n2u) 3791 | -8/Materials | Entered Factory 3791 | -7/Factory | Evolved 2 slots: Utility x2 3890 | -7/Factory | Identified exit to Lower Caves 4268 | -7/Factory | Build established: Hacker-Mutant 4453 | -7/Factory | Discovered new exit (range 17) 5359 | -7/Factory | Fabricated Enh. Gauss Cannon (x2) 5398 | -7/Factory | Entered Lower Caves 5601 | -7/Lower Caves | Attracted the attention of an 0b10 checkpoint 5691 | -7/Lower Caves | Build established: Assassin 5849 | -7/Lower Caves | Learned 4 Factory zone layouts 5994 | -7/Lower Caves | Discovered new exit (range 12) 6007 | -7/Lower Caves | Identified exit to Lower Caves 6034 | -7/Lower Caves | Entered another Lower Caves area 6036 | -7/Lower Caves | Attracted the attention of an 0b10 checkpoint 6076 | -7/Lower Caves | Identified Exp. Sensor Array 6081 | -7/Lower Caves | Lost 3 parts (1n2u) 6194 | -7/Lower Caves | Learned Factory terminal intel 6322 | -7/Lower Caves | Learned 4 Factory zone layouts 6405 | -7/Lower Caves | Discovered new exit (range 16) 6461 | -7/Lower Caves | Attracted the attention of an 0b10 outpost 6509 | -7/Lower Caves | Destroyed 8 combat bots 6516 | -7/Lower Caves | Lost 3 parts (1p1n1u) 6607 | -7/Lower Caves | Identified exit to Data Miner 6659 | -7/Lower Caves | Entered Data Miner 6659 | -7/Data Miner | Accompanied by 2 allies 6659 | -7/Data Miner | Discovered new exit (range 6) 6684 | -7/Data Miner | Met Data Miner 6710 | -7/Data Miner | Learned location of Section 7 (-2) 6710 | -7/Data Miner | Acquired the access code to Warlord's prototype stash 6727 | -7/Data Miner | Received God Mode back door access code from Data Miner 6758 | -7/Data Miner | Identified exit to Proximity Caves 6766 | -7/Data Miner | Entered Proximity Caves 6766 | -6/Proximity Caves | Accompanied by 2 allies 6768 | -6/Proximity Caves | Spotter reported a threat 6769 | -6/Proximity Caves | Spotter reported a threat 7019 | -6/Proximity Caves | Found Alien Artifact 7020 | -6/Proximity Caves | Identified Core Expander 7020 | -6/Proximity Caves | Installed Core Expander, added new Weapon slot 7059 | -6/Proximity Caves | Learned location of 1 exit from Factory 7101 | -6/Proximity Caves | Discovered new exit (range 17) 7119 | -6/Proximity Caves | Identified exit to Factory 7123 | -6/Proximity Caves | System corruption reached 10% 7124 | -6/Proximity Caves | Entered Factory 7124 | -6/Factory | Accompanied by 2 allies 7124 | -6/Factory | Evolved 2 slots: Propulsion x1, Utility x1 7125 | -6/Factory | Identified exit to Factory 7127 | -6/Factory | Loaded intel: 26 terminal locations 7152 | -6/Factory | Identified exit to DSF 7255 | -6/Factory | Entered DSF 7255 | -6/DSF | Accompanied by 2 allies 7318 | -6/DSF | Additional patrols routed to DSF 7382 | -6/DSF | Lost 3 parts (1n1u1w) 7423 | -6/DSF | Discovered exit to Factory (range 16) 7454 | -6/DSF | Lost 3 parts (2n1u) 7459 | -6/DSF | Entered Factory 7459 | -5/Factory | Evolved 2 slots: Power x1, Propulsion x1 7807 | -5/Factory | Build established: Scavenger-Assassin 8472 | -5/Factory | Discovered new exit (range 5) 8764 | -5/Factory | System corruption reached 10% 8768 | -5/Factory | Cargo convoy interrupted 8783 | -5/Factory | Incoming assault squad redirected 8793 | -5/Factory | Incoming investigation squad redirected 8908 | -5/Factory | Lost 16 parts (1p6n6u3w) 8962 | -5/Factory | Core integrity fell below 50% 8976 | -5/Factory | Core integrity fell below 20% 8980 | -5/Factory | Destroyed by H-71 Marshal with Heavy Mass Driver Last Messages --------------- 08942_ K-01 Serf collects debris. 08956_ Knocked back. 08958_ Enh. Gauss Cannon destroyed. 08958_ Knocked back. 08960_ Penetrated by Slug. 08962_ Med. Treads destroyed. 08962_ Knocked back. 08964_ 8Y=YO=NQNOMCCHH0NTL8ILLD&K/QRHBHM/ZQJ 08964_ Mic. Fission Core destroyed. 08964_ Imp. Terrain Scanner destroyed. 08964_ Com. Wheel destroyed. 08964_ Knocked back. 08967_ Flak Gun destroyed. 08967_ Penetrated by Slug. 08967_ Knocked back. 08968_ Acquired 1 matter. 08974_ Knocked back. 08975_ Penetrated by Slug. 08975_ Knocked back. 08979_ Acquired 16 matter. Map ----- +----------------------------------------------------+ | ?????????????########### !% [! | | ??????????#?############ % =% [= | | ????????????#?########## %% #%* | | ???????????#?##?###########"####/" %[! # | | ?????????????########### % [%=% # | | ????????????#???######## !"!%= # | | ??????????????##?##?#### %/%= % # | | ????????????#??#?####### ! " | " # | | ?????????????##?#####?## A " " # | | ????????????#??#?#?##### ###### #! " # | | ??????????????????#####"% ###### # "" # | | ????????????#??##?###### %p ###### # "" # | | ????????#??#?########### ###### # # | | ??????????############## % ###### ######## | | ??????????# # ######+######## | | ??????????# # # """"" # | | ??????????# # # "" F" # | | ??????????# #% # ! "" "" # | | ??????????# # % # # | | ??????????# # # """"""""" # | | ??????????# # # # | | ??????????# + + """"""""" # | | ??????????# % # # # | | ??????????# % # ############### | | ???#??????# ; # ###?# | | #????#?#?## ; @ # ##### | | ??#??????###############HH% # """ !!! ##### | | ?#????###?#??#?#?####### # """ ! ! ##### | | #??#????##?##?########## + """ !!! ###?? | | #??#######?####?##?##### # ##??? | | ############?##?##?#?### # ##### | | ###?#?####?###?#?####### # ##### | | #?#?##?####??####?#### ############### | | ################?##### ##?#########?## | | ########### ?##?## < #####?####?#### | | # ! # ?##### ############### | | # "" # ?? ##### ########?###### | | # """ # ? ########k#######?#???###### | | # """ R" # ?? ### ######??#?## | | # """ """ # #?# ########?### | | # """ #+##+##### ####?####### | | # + + ############ | | # ! # ##?## ##??######## | | ########### ##### #######?#?## | | #####! #####?#####? | | ##### #?### #?#?#?###### | | ##### ##### #?####?##??# | | ##### / #?##??#????? | | #####+########+##### ##?####????? | | # # ## ####???#???? | +----------------------------------------------------+ Best States ------------- Heat Dissipation 78 Energy Generation 27 Energy Capacity 350 Matter Stores 300 Matter Capacity 300 Sight Range 18 Robot Scan Range 20 Terrain Scan Range 20 Terrain Scan Density 210 Additional Mass Support 9 Base Temperature (-) 100 Armor Coverage 300 Resistance: KI 20 Resistance: EM 15 Weapon Shielding 66 Evasion (%) 65 Targeting Accuracy 5 Melee Accuracy 8 Recoil Reduction 3 Force Boost 20 Offensive Hacking 20 Authchip Count 7 Item Schematics ----------------- Combat Drone Bay | -7/Data Miner | Free Lgt. Regenerative Plating | -7/Data Miner | Free Multireflex Exoskeleton | -7/Data Miner | Free Exp. Targeting Computer | -7/Data Miner | Free Antimatter Cannon | -7/Data Miner | Free Antigrav System | -7/Data Miner | Free Imp. Transmission Jammer | -7/Data Miner | Free KE Penetrator | -7/Data Miner | Free Flexi-carbon Leg | -7/Data Miner | Free Adv. Reaction Control System | -7/Data Miner | Free Adv. Particle Charger | -7/Data Miner | Free Robot Schematics ------------------ L-41 Fighter | -7/Data Miner | Free G-50 Soldier | -7/Data Miner | Free R-10 Processor | -7/Data Miner | Free B-48 Gladiator | -7/Data Miner | Free M-22 Extractor | -7/Data Miner | Free B-60 Warrior | -7/Data Miner | Free Y-54 Guardian | -7/Data Miner | Free Fabricated ------------ Enh. Gauss Cannon | x2 | -7/Factory | Preloaded Repaired ---------- Arm. Wheel | 35% | -8/Materials Alien Tech Used ----------------- Core Expander Achievements -------------- None Challenges ------------ None Game ------ Seed LinkedDisruptionGravjet Manual? 0 Play Time 01:42:27 Cumulative 162.6 hours Start 2025.08.17 @ 22:52:17 End 2025.08.18 @ 19:24:32 Sessions 3 Manual Loads 0 Difficulty Rogue Special Mode None Game No. 265 Rogue 265 Adventurer 0 Explorer 0 Win Type - Total 3 Types 2/0/1/0/0/0/0/0/0/0 Lore% 77 Gallery% 72 Achievement% 53 Wizard Run 0 Options --------- Layout 1 ASCII 0 Keyboard 0 Movement Mouse Keybinds 0 Fullscreen 1 Font 24/Smallcaps Map View 50x35 Zoom Use 0% Tactical HUD 1 Map Filters NONE Filters NONE Steam 1 RUN: c46883ca-c25d-452f-8e8e-53e6d540375e